fUST/lending_fUST_20250725
["ID","MTS","AMOUNT","RATE_DAILY","PERIOD"]
[374644064,1753396240200,-460.0,0.00018964,2]
[374644065,1753396240210,-800.88,0.00018964,2]
[374644066,1753396240219,-2058.95,0.00018964,2]
[374644067,1753396240229,-2784.53,0.00018964,2]
[374644068,1753396240239,-460.0,0.00018964,2]
[374644069,1753396240248,-1957.15,0.00018964,2]
[374644070,1753396240258,-460.0,0.00018964,2]
[374644071,1753396240268,-1911.05,0.00018964,2]
[374644072,1753396240280,-767.57,0.00018964,2]
[374644073,1753396240290,-460.0,0.00018964,2]
[374644074,1753396240299,-864.69,0.00018964,2]
[374644075,1753396240309,-2500.5,0.00018964,2]
[374644076,1753396240320,-3156.32,0.00018964,2]
[374644077,1753396240330,-316.97761444,0.00018967,2]
[374644078,1753396240340,-460.0,0.00018967,2]
[374644079,1753396240354,-460.0,0.00018967,2]
[374644080,1753396240364,-460.0,0.00018967,2]
[374644081,1753396240374,-460.0,0.00018967,2]
[374644082,1753396240384,-400.40905759,0.00018967,2]
[374644083,1753396240394,-460.0,0.00018967,2]
[374644084,1753396240404,-461.53,0.00018967,2]
[374644085,1753396240413,-460.0,0.00018967,2]
[374644086,1753396240423,-460.0,0.00018967,2]
[374644087,1753396240433,-460.0,0.00018967,2]
[374644088,1753396240442,-460.0,0.00018967,2]
[374644089,1753396240452,-460.0,0.00018967,2]
[374644090,1753396240461,-602.56,0.00018967,2]
[374644091,1753396240471,-460.0,0.00018967,2]
[374644092,1753396240480,-460.0,0.00018967,2]
[374644093,1753396240489,-908.68,0.00018967,2]
[374644094,1753396240499,-392.00864119,0.00018967,2]
[374644095,1753396240509,-460.0,0.00018967,2]
[374644096,1753396240518,-460.0,0.00018967,2]
[374644097,1753396240527,-460.0,0.00018967,2]
[374644098,1753396240537,-460.0,0.00018967,2]
[374644099,1753396240548,-460.0,0.00018967,2]
[374644100,1753396240557,-460.0,0.00018967,2]
[374644101,1753396240567,-460.0,0.00018967,2]
[374644102,1753396240576,-460.0,0.00018967,2]
[374644103,1753396240586,-654.02,0.00018967,2]
[374644104,1753396240596,-460.0,0.00018967,2]
[374644105,1753396240605,-734.58,0.00018967,2]
[374644106,1753396240615,-460.0,0.00018967,2]
[374644107,1753396240625,-478.11,0.00018967,2]
[374644108,1753396240634,-460.0,0.00018967,2]
[374644109,1753396240644,-460.0,0.00018967,2]
[374644110,1753396240654,-486.12,0.00018967,2]
[374644111,1753396240664,-460.0,0.00018967,2]
[374644112,1753396240673,-867.73,0.00018967,2]
[374644113,1753396240684,-460.0,0.00018967,2]
[374644114,1753396240693,-460.0,0.00018967,2]
[374644115,1753396240702,-460.0,0.00018967,2]
[374644116,1753396240712,-460.0,0.00018967,2]
[374644117,1753396240722,-460.0,0.00018967,2]
[374644118,1753396240732,-460.0,0.00018967,2]
[374644119,1753396240743,-460.0,0.00018967,2]
[374644120,1753396240753,-460.0,0.00018967,2]
[374644121,1753396240763,-465.81800316,0.00018967,2]
[374644122,1753396240773,-1804.79681637,0.00018967,2]
[374644123,1753396240917,-320.17165751,0.00018853,2]
[374644124,1753396240933,-139.82834249,0.00018853,2]
[374644125,1753396240944,-460.0,0.00018853,2]
[374644126,1753396240954,-650.00318363,0.00018967,2]
[374644127,1753396240964,-460.0,0.00018967,2]
[374644128,1753396240974,-357.70944985,0.00018967,2]
[374644129,1753396240985,-591.25055015,0.00018967,2]
[374644130,1753396240995,-88.61315087,0.00018967,2]
[374644131,1753396241007,-689.31684913,0.00018967,2]
[374644132,1753396241017,-460.0,0.00018967,2]
[374644133,1753396241027,-494.2,0.00018967,2]
[374644134,1753396241037,-460.0,0.00018967,2]
[374644135,1753396241051,-460.0,0.00018967,2]
[374644136,1753396241060,-1395.53,0.00018967,2]
[374644137,1753396241070,-460.0,0.00018967,2]
[374644138,1753396241080,-460.0,0.00018967,2]
[374644139,1753396241090,-460.0,0.00018967,2]
[374644140,1753396241100,-460.0,0.00018967,2]
[374644141,1753396241109,-632.67,0.00018967,2]
[374644142,1753396241119,-460.0,0.00018967,2]
[374644143,1753396241128,-500.0,0.00018967,2]
[374644144,1753396241138,-500.0,0.00018967,2]
[374644145,1753396241148,-500.0,0.00018967,2]
[374644146,1753396241158,-500.57,0.00018967,2]
[374644147,1753396241168,-460.0,0.00018967,2]
[374644148,1753396241178,-460.0,0.00018967,2]
[374644149,1753396241188,-500.0,0.00018973,2]
[374644150,1753396241197,-500.0,0.00018973,2]
[374644151,1753396241207,-500.0,0.00018973,2]
[374644152,1753396241216,-221.90957448,0.00018973,2]
[374644153,1753396241226,-500.0,0.00018973,2]
[374644154,1753396241235,-460.0,0.00018974,2]
[374644155,1753396241245,-172.80804998,0.00018974,2]
[374644156,1753396241255,-461.55921139,0.00018974,2]
[374644157,1753396241266,-477.29016809,0.00018974,2]
[374644158,1753396241278,-460.0,0.00018974,2]
[374644159,1753396241289,-460.0,0.00018974,2]
[374644160,1753396241299,-460.98580716,0.00018974,2]
[374644161,1753396241308,-460.0,0.00018974,2]
[374644162,1753396241319,-460.0,0.00018974,2]
[374644163,1753396241329,-460.0,0.00018974,2]
[374644164,1753396241339,-460.0,0.00018974,2]
[374644165,1753396241349,-460.0,0.00018974,2]
[374644166,1753396241359,-185.24514658,0.00018974,2]
[374644167,1753396241371,-460.0,0.00018974,2]
[374644168,1753396241381,-462.84881676,0.00018974,2]
[374644169,1753396241392,-460.0,0.00018974,2]
[374644170,1753396241402,-460.0,0.00018974,2]
[374644171,1753396241411,-460.0,0.00018974,2]
[374644172,1753396241420,-460.0,0.00018974,2]
[374644173,1753396241430,-460.0,0.00018974,2]
[374644174,1753396241440,-460.0,0.00018974,2]
[374644175,1753396241450,-460.0,0.00018974,2]
[374644176,1753396241460,-460.0,0.00018974,2]
[374644177,1753396241470,-500.0,0.00018974,2]
[374644178,1753396241479,-460.0,0.00018974,2]
[374644179,1753396241593,-460.0,0.00018974,2]
[374644180,1753396241603,-460.0,0.00018974,2]
[374644182,1753396241613,-460.0,0.00018974,2]
[374644184,1753396241622,-460.0,0.00018974,2]
[374644186,1753396241631,-460.0,0.00018974,2]
[374644188,1753396241641,-548.83486579,0.00018974,2]
[374644190,1753396241651,-400.00000075,0.00018974,2]
[374644192,1753396241660,-542.69525169,0.00018974,2]
[374644194,1753396241670,-460.0,0.00018974,2]
[374644196,1753396241680,-464.6107008,0.00018974,2]
[374644198,1753396241689,-460.0,0.00018974,2]
[374644200,1753396241698,-460.0,0.00018974,2]
[374644202,1753396241707,-460.0,0.00018974,2]
[374644204,1753396241716,-460.0,0.00018974,2]
[374644206,1753396241725,-460.0,0.00018974,2]
[374644208,1753396241735,-460.0,0.00018974,2]
[374644210,1753396241744,-460.0,0.00018974,2]
[374644212,1753396241753,-460.0,0.00018974,2]
[374644213,1753396241763,-460.0,0.00018974,2]
[374644216,1753396241772,-460.0,0.00018974,2]
[374644217,1753396241782,-401.62842738,0.00018974,2]
[374644326,1753396243018,-58.37157262,0.00018974,2]
[374644328,1753396243027,-460.0,0.00018974,2]
[374644330,1753396243036,-460.0,0.00018974,2]
[374644332,1753396243047,-646.57,0.00018974,2]
[374644334,1753396243056,-460.0,0.00018974,2]
[374644336,1753396243065,-381.96226308,0.00018974,2]
[374644633,1753396245905,-1094.93,0.00018855,2]
[374644635,1753396245915,-460.0,0.00018864,2]
[374644637,1753396245925,-460.0,0.00018864,2]
[374644639,1753396245934,-463.18029216,0.00018866,2]
[374644641,1753396245944,-79.60285705,0.00018974,2]
[374644643,1753396245953,-460.99543552,0.00018974,2]
[374644645,1753396245963,-460.0,0.00018974,2]
[374644647,1753396245972,-460.0,0.00018974,2]
[374644649,1753396245982,-460.0,0.00018974,2]
[374644651,1753396245992,-460.0,0.00018974,2]
[374644653,1753396246002,-291.15966776,0.00018975,2]
[374644655,1753396246011,-460.0,0.00018975,2]
[374644657,1753396246020,-460.0,0.00018975,2]
[374644659,1753396246030,-460.0,0.00018975,2]
[374644661,1753396246040,-460.0,0.00018975,2]
[374644663,1753396246049,-460.0,0.00018975,2]
[374644666,1753396246061,-460.0,0.00018975,2]
[374644668,1753396246070,-460.0,0.00018975,2]
[374644670,1753396246080,-460.0,0.00018975,2]
[374644672,1753396246089,-449.22559505,0.00018975,2]
[374644674,1753396246099,-460.0,0.00018975,2]
[374644676,1753396246108,-460.0,0.00018975,2]
[374644678,1753396246118,-391.32053451,0.00018975,2]
[374644680,1753396246129,-460.0,0.00018975,2]
[374644682,1753396246138,-460.0,0.00018975,2]
[374644684,1753396246147,-460.0,0.00018975,2]
[374644686,1753396246156,-318.61372752,0.00018975,2]
[374644688,1753396246165,-460.0,0.00018975,2]
[374644690,1753396246175,-460.0,0.00018975,2]
[374644692,1753396246184,-460.0,0.00018975,2]
[374644694,1753396246193,-460.0,0.00018975,2]
[374644696,1753396246203,-417.31594807,0.00018975,2]
[374644698,1753396246212,-460.0,0.00018975,2]
[374644700,1753396246221,-460.0,0.00018975,2]
[374644702,1753396246230,-460.0,0.00018975,2]
[374644704,1753396246240,-460.0,0.00018975,2]
[374644706,1753396246249,-1057.52,0.00018975,2]
[374644708,1753396246259,-460.0,0.00018975,2]
[374644710,1753396246268,-460.0,0.00018975,2]
[374644712,1753396246278,-460.0,0.00018975,2]
[374644714,1753396246289,-460.0,0.00018975,2]
[374644716,1753396246299,-460.0,0.00018975,2]
[374644718,1753396246308,-389.85782865,0.00018975,2]
[374644720,1753396246317,-500.07,0.00018975,2]
[374644722,1753396246327,-216.42680965,0.00018975,2]
[374644724,1753396246337,-460.0,0.00018975,2]
[374644726,1753396246346,-460.0,0.00018975,2]
[374644728,1753396246358,-460.0,0.00018975,2]
[374644730,1753396246367,-529.32,0.00018975,2]
[374644732,1753396246376,-460.0,0.00018975,2]
[374644734,1753396246385,-460.0,0.00018975,2]
[374644736,1753396246394,-460.0,0.00018975,2]
[374644738,1753396246404,-586.97,0.00018975,2]
[374644740,1753396246413,-460.0,0.00018975,2]
[374644742,1753396246423,-460.0,0.00018975,2]
[374644744,1753396246432,-460.0,0.00018975,2]
[374644746,1753396246441,-460.0,0.00018975,2]
[374644748,1753396246453,-460.0,0.00018975,2]
[374644750,1753396246463,-460.0,0.00018975,2]
[374644752,1753396246473,-460.0,0.00018975,2]
[374644754,1753396246482,-460.0,0.00018975,2]
[374644756,1753396246491,-460.0,0.00018975,2]
[374644758,1753396246500,-460.0,0.00018975,2]
[374644760,1753396246510,-1014.68,0.00018975,2]
[374644762,1753396246520,-460.0,0.00018975,2]
[374644764,1753396246529,-77.55169414,0.00018977,2]
[374644766,1753396246541,-422.44830586,0.00018977,2]
[374644768,1753396246551,-3352.38775224,0.00019107,2]
[374644770,1753396246560,-3411.70070394,0.00019113,2]
[374644772,1753396246570,-460.0,0.00019127,2]
[374644774,1753396246579,-460.0,0.00019127,2]
[374644776,1753396246589,-460.0,0.00019127,2]
[374644778,1753396246599,-460.0,0.00019127,2]
[374644791,1753396246707,-460.0,0.00019127,2]
[374644793,1753396246716,-460.0,0.00019128,2]
[374644795,1753396246725,-460.0,0.00019128,2]
[374644797,1753396246735,-460.0,0.00019128,2]
[374644799,1753396246744,-460.0,0.00019128,2]
[374644801,1753396246753,-460.0,0.00019128,2]
[374644803,1753396246763,-606.99757926,0.00019128,2]
[374644805,1753396246773,-592.4,0.00019128,2]
[374644807,1753396246783,-411.43415979,0.00019128,2]
[374644809,1753396246792,-646.06,0.00019128,2]
[374644811,1753396246804,-2304.2,0.00019128,2]
[374644813,1753396246814,-687.88,0.00019128,2]
[374644815,1753396246823,-460.0,0.00019129,2]
[374644817,1753396246833,-204.69910929,0.00019129,2]
[374644819,1753396246842,-460.0,0.00019129,2]
[374644821,1753396246851,-460.0,0.00019129,2]
[374644823,1753396246861,-460.0,0.00019129,2]
[374644825,1753396246870,-4943.9248846,0.00019129,2]
[374645086,1753396458973,238.773279,0.00018185,2]
[374645087,1753396459366,274.35235799,0.00018189,2]
[374645089,1753396652530,11100.16315754,0.00017755,2]
[374645090,1753396652556,13799.83684246,0.00017755,2]
[374645091,1753396726244,335.152688,0.00017755,2]
[374645092,1753396760618,188.4887427,0.00018191,2]
[374645093,1753396788155,272.264041,0.00013699,2]
[374645095,1753396870048,153.850217,0.00018306,24]
[374645096,1753396870360,153.850217,0.00018084,24]
[374645097,1753396870665,153.850217,0.00017862,24]
[374645100,1753397225152,-153.850217,0.00018528,24]
[374645101,1753397225174,-274.64549198,0.0001872,2]
[374645102,1753397225195,-1852.11859918,0.00018734,2]
[374645103,1753397225216,-462.06020624,0.00018734,2]
[374645104,1753397225237,-1200.0,0.00018746,2]
[374645105,1753397225262,-9.96343916,0.00018746,2]
[374645106,1753397226071,-290.03656084,0.00018746,2]
[374645107,1753397226093,-150.73,0.00018747,3]
[374645108,1753397226115,-275.09759464,0.00018747,3]
[374645109,1753397248132,-189.93047499,0.00018528,2]
[374645110,1753397248155,-177.13240536,0.00018747,3]
[374645111,1753397248178,-450.67915055,0.00018747,3]
[374645155,1753397432118,-973.97693703,0.00018689,2]
[374645160,1753397432156,-260.76879575,0.00018689,2]
[374645162,1753397432165,-128.82084945,0.00018747,3]
[374645163,1753397432175,-550.27709711,0.00018747,3]
[374645273,1753397438213,-3609.07108579,0.00018688,2]
[374645274,1753397438226,-227.57290289,0.00018747,3]
[374645275,1753397438238,-300.0,0.00018752,2]
[374645276,1753397438250,-300.0,0.00018752,2]
[374645277,1753397438263,-300.0,0.00018752,2]
[374645278,1753397438276,-1200.0,0.00018752,2]
[374645279,1753397438288,-300.0,0.00018752,2]
[374645280,1753397438300,-300.0,0.00018752,2]
[374645281,1753397438313,-460.0,0.00018753,2]
[374645282,1753397438325,-460.0,0.00018753,2]
[374645283,1753397438337,-460.0,0.00018753,2]
[374645284,1753397438349,-460.0,0.00018753,2]
[374645285,1753397438361,-204.7095062,0.00018753,2]
[374645286,1753397438374,-587.25,0.00018753,2]
[374645287,1753397438386,-460.0,0.00018753,2]
[374645288,1753397438402,-622.17,0.00018753,2]
[374645289,1753397438418,-2405.71,0.00018753,2]
[374645290,1753397438433,-697.42,0.00018753,2]
[374645291,1753397438446,-460.0,0.00018753,2]
[374645292,1753397438460,-460.0,0.00018753,2]
[374645293,1753397438473,-460.0,0.00018753,2]
[374645294,1753397438487,-460.0,0.00018753,2]
[374645295,1753397438499,-460.0,0.00018753,2]
[374645296,1753397438513,-361.83061401,0.00018753,2]
[374645297,1753397438525,-404.38894832,0.00018753,2]
[374645298,1753397438538,-500.0,0.00018753,2]
[374645299,1753397438550,-500.0,0.00018753,2]
[374645300,1753397438563,-500.0,0.00018753,2]
[374645301,1753397438575,-500.0,0.00018753,2]
[374645302,1753397438589,-373.17601295,0.00018753,2]
[374645303,1753397438601,-500.0,0.00018753,2]
[374645304,1753397438613,-500.0,0.00018753,2]
[374645305,1753397438625,-590.95780756,0.00018753,2]
[374645306,1753397438637,-500.0,0.00018753,2]
[374645307,1753397438649,-500.0,0.00018753,2]
[374645308,1753397438662,-372.3261692,0.00018753,2]
[374645309,1753397438674,-500.0,0.00018753,2]
[374645310,1753397438686,-500.0,0.00018753,2]
[374645311,1753397438698,-512.49776898,0.00018753,2]
[374645312,1753397438710,-460.0,0.00018754,2]
[374645313,1753397438722,-460.0,0.00018754,2]
[374645314,1753397438734,-460.0,0.00018754,2]
[374645315,1753397438746,-460.0,0.00018754,2]
[374645316,1753397438758,-460.0,0.00018754,2]
[374645317,1753397438770,-460.0,0.00018754,2]
[374645318,1753397438784,-282.02709983,0.00018754,2]
[374645319,1753397438795,-6677.64,0.00018754,2]
[374645320,1753397438807,-460.0,0.00018754,2]
[374645321,1753397438818,-460.0,0.00018754,2]
[374645322,1753397438829,-461.73,0.00018754,2]
[374645323,1753397438838,-3208.31,0.00018754,2]
[374645324,1753397438848,-460.0,0.00018754,2]
[374645325,1753397438858,-460.0,0.00018754,2]
[374645326,1753397439033,-460.0,0.00018754,2]
[374645327,1753397439058,-460.0,0.00018754,2]
[374645328,1753397439069,-468.13,0.00018754,2]
[374645329,1753397439079,-661.28,0.00018754,2]
[374645330,1753397439088,-460.0,0.00018754,2]
[374645331,1753397439098,-884.18,0.00018754,2]
[374645332,1753397439107,-454.63921108,0.00018754,2]
[374645333,1753397439117,-460.0,0.00018754,2]
[374645334,1753397439126,-460.0,0.00018754,2]
[374645335,1753397439136,-2919.28,0.00018754,2]
[374645336,1753397439146,-157.51340759,0.00018754,2]
[374645337,1753397439155,-3222.07,0.00018754,2]
[374645338,1753397439165,-460.0,0.00018754,2]
[374645339,1753397439175,-460.0,0.00018754,2]
[374645340,1753397439184,-460.0,0.00018754,2]
[374645341,1753397439194,-729.29,0.00018754,2]
[374645342,1753397439203,-460.0,0.00018754,2]
[374645343,1753397439213,-467.98456549,0.00018754,2]
[374645344,1753397439222,-460.0,0.00018754,2]
[374645345,1753397439232,-460.0,0.00018754,2]
[374645346,1753397439242,-460.0,0.00018754,2]
[374645347,1753397439251,-460.0,0.00018754,2]
[374645348,1753397439261,-2213.92,0.00018754,2]
[374645349,1753397439271,-686.76,0.00018754,2]
[374645350,1753397439280,-880.35,0.00018754,2]
[374645351,1753397439290,-460.0,0.00018754,2]
[374645352,1753397439299,-460.0,0.00018754,2]
[374645353,1753397439309,-460.0,0.00018754,2]
[374645354,1753397439319,-678.76,0.00018754,2]
[374645355,1753397439329,-460.0,0.00018754,2]
[374645356,1753397439339,-460.0,0.00018754,2]
[374645357,1753397439348,-1159.8,0.00018754,2]
[374645358,1753397439358,-340.86424722,0.00018754,2]
[374645359,1753397439371,-936.60470838,0.00018754,2]
[374645360,1753397439383,-1481.7610444,0.00018754,2]
[374645361,1753397439392,-460.0,0.00018754,2]
[374645362,1753397439402,-460.0,0.00018754,2]
[374645363,1753397439412,-460.0,0.00018755,2]
[374645364,1753397439422,-460.0,0.00018755,2]
[374645365,1753397439431,-333.16646818,0.00018755,2]
[374645366,1753397439441,-460.0,0.00018755,2]
[374645368,1753397439451,-230.30582454,0.00018755,2]
[374645370,1753397439460,-408.60702288,0.00018755,2]
[374645371,1753397439472,-16.50275064,0.00018755,2]
[374645372,1753397439482,-460.0,0.00018755,2]
[374645373,1753397439493,-460.0,0.00018755,2]
[374645374,1753397439503,-460.0,0.00018755,2]
[374645375,1753397439513,-460.0,0.00018755,2]
[374645376,1753397439523,-460.0,0.00018755,2]
[374645377,1753397439533,-465.42558319,0.00018755,2]
[374645378,1753397439544,-160.68645504,0.00018755,2]
[374645379,1753397439554,-460.0,0.00018755,2]
[374645380,1753397439565,-460.0,0.00018755,2]
[374645381,1753397439575,-460.0,0.00018755,2]
[374645382,1753397439584,-460.0,0.00018755,2]
[374645384,1753397439594,-238.35004667,0.00018755,2]
[374645386,1753397439604,-460.0,0.00018755,2]
[374645387,1753397439613,-460.0,0.00018755,2]
[374645388,1753397439622,-460.0,0.00018755,2]
[374645389,1753397439632,-460.0,0.00018755,2]
[374645390,1753397439641,-460.0,0.00018755,2]
[374645391,1753397439651,-460.0,0.00018755,2]
[374645392,1753397439660,-460.0,0.00018755,2]
[374645393,1753397439670,-460.0,0.00018755,2]
[374645394,1753397439679,-460.0,0.00018755,2]
[374645395,1753397439689,-460.0,0.00018755,2]
[374645396,1753397439699,-460.0,0.00018755,2]
[374645398,1753397439709,-460.0,0.00018755,2]
[374645400,1753397439718,-625.52,0.00018755,2]
[374645402,1753397439728,-182.1439588,0.00018755,2]
[374645404,1753397439740,-277.8560412,0.00018755,2]
[374645406,1753397439749,-460.0,0.00018755,2]
[374645408,1753397439759,-462.81881752,0.00018755,2]
[374645410,1753397439768,-460.0,0.00018755,2]
[374645412,1753397439778,-464.52954203,0.00018755,2]
[374645414,1753397439788,-460.0,0.00018755,2]
[374645416,1753397439797,-460.0,0.00018755,2]
[374645418,1753397439808,-404.29388804,0.00018755,2]
[374645420,1753397439818,-175.8183491,0.00018755,2]
[374645423,1753397439840,-284.1816509,0.00018755,2]
[374645425,1753397439861,-460.0,0.00018755,2]
[374645427,1753397439870,-516.05507771,0.00018755,2]
[374645429,1753397439880,-893.14,0.00018755,2]
[374645431,1753397439892,-519.6,0.00018755,2]
[374645433,1753397439902,-460.0,0.00018755,2]
[374645435,1753397439912,-460.0,0.00018755,2]
[374645437,1753397439922,-460.0,0.00018755,2]
[374645439,1753397439931,-460.0,0.00018755,2]
[374645441,1753397439941,-460.0,0.00018755,2]
[374645443,1753397439951,-460.0,0.00018755,2]
[374645445,1753397439962,-460.0,0.00018755,2]
[374645447,1753397439971,-460.0,0.00018755,2]
[374645449,1753397439982,-460.0,0.00018755,2]
[374645451,1753397439991,-460.0,0.00018755,2]
[374645453,1753397440000,-615.79,0.00018755,2]
[374645455,1753397440009,-460.0,0.00018755,2]
[374645457,1753397440019,-1116.63,0.00018755,2]
[374645459,1753397440028,-460.0,0.00018755,2]
[374645461,1753397440037,-880.96,0.00018755,2]
[374645463,1753397440046,-460.83,0.00018755,2]
[374645465,1753397440058,-620.48,0.00018755,2]
[374645467,1753397440067,-460.0,0.00018755,2]
[374645469,1753397440076,-781.45,0.00018755,2]
[374645471,1753397440086,-1417.53,0.00018755,2]
[374645473,1753397440095,-460.0,0.00018755,2]
[374645475,1753397440105,-460.0,0.00018755,2]
[374645477,1753397440114,-460.0,0.00018755,2]
[374645479,1753397440124,-460.0,0.00018755,2]
[374645481,1753397440133,-460.0,0.00018755,2]
[374645483,1753397440143,-460.0,0.00018755,2]
[374645485,1753397440152,-460.0,0.00018755,2]
[374645487,1753397440161,-460.0,0.00018755,2]
[374645489,1753397440171,-460.0,0.00018755,2]
[374645491,1753397440180,-460.0,0.00018755,2]
[374645493,1753397440191,-168.98431095,0.00018755,2]
[374645495,1753397440201,-460.0,0.00018755,2]
[374645497,1753397440210,-460.0,0.00018755,2]
[374645499,1753397440219,-460.0,0.00018755,2]
[374645501,1753397440229,-460.0,0.00018755,2]
[374645503,1753397440238,-352.39944266,0.00018755,2]
[374645505,1753397440248,-460.0,0.00018755,2]
[374645507,1753397440257,-542.83,0.00018756,2]
[374645509,1753397440267,-460.0,0.00018756,2]
[374645511,1753397440277,-460.0,0.00018756,2]
[374645513,1753397440287,-460.0,0.00018756,2]
[374645515,1753397440296,-544.04463477,0.00018756,2]
[374645517,1753397440306,-460.0,0.00018756,2]
[374645519,1753397440316,-460.0,0.00018756,2]
[374645521,1753397440326,-460.0,0.00018756,2]
[374645523,1753397440335,-460.0,0.00018756,2]
[374645525,1753397440345,-460.0,0.00018756,2]
[374645527,1753397440354,-460.0,0.00018756,2]
[374645529,1753397440364,-460.0,0.00018756,2]
[374645531,1753397440374,-460.0,0.00018756,2]
[374645533,1753397440384,-460.0,0.00018756,2]
[374645535,1753397440394,-460.0,0.00018756,2]
[374645537,1753397440403,-554.98,0.00018756,2]
[374645539,1753397440412,-1320.8,0.00018756,2]
[374645541,1753397440421,-460.0,0.00018756,2]
[374645543,1753397440431,-2222.32,0.00018756,2]
[374645545,1753397440440,-817.32,0.00018756,2]
[374645547,1753397440450,-1227.56,0.00018756,2]
[374645549,1753397440459,-1107.48,0.00018756,2]
[374645551,1753397440469,-460.0,0.00018756,2]
[374645553,1753397440479,-460.0,0.00018756,2]
[374645555,1753397440488,-2923.76,0.00018756,2]
[374645557,1753397440498,-460.0,0.00018756,2]
[374645558,1753397440507,-2225.69,0.00018756,2]
[374645561,1753397440517,-745.44,0.00018756,2]
[374645562,1753397440527,-629.56,0.00018756,2]
[374645564,1753397440536,-460.0,0.00018756,2]
[374645566,1753397440546,-1965.92,0.00018756,2]
[374645568,1753397440555,-912.46,0.00018756,2]
[374645570,1753397440565,-460.0,0.00018756,2]
[374645573,1753397440581,-1190.72,0.00018756,2]
[374645575,1753397440596,-3025.32,0.00018756,2]
[374645577,1753397440606,-460.0,0.00018756,2]
[374645579,1753397440616,-460.0,0.00018756,2]
[374645582,1753397440626,-460.0,0.00018756,2]
[374645584,1753397440637,-538.58,0.00018756,2]
[374645586,1753397440647,-793.39,0.00018756,2]
[374645588,1753397440656,-987.03,0.00018756,2]
[374645590,1753397440666,-6058.1,0.00018756,2]
[374645592,1753397440676,-370000.0,0.00018757,2]
[374645594,1753397440687,-1513.52044931,0.00018789,2]
[374645596,1753397440696,-215.0738,0.00018836,2]
[374645598,1753397440706,-529.15110217,0.00018836,2]
[374645600,1753397440716,-151.0,0.00018836,2]
[374645602,1753397440725,-151.0,0.00018836,2]
[374645604,1753397440735,-151.0,0.00018836,2]
[374645606,1753397440745,-151.0,0.00018836,2]
[374645608,1753397440755,-151.0,0.00018836,2]
[374645610,1753397440765,-151.0,0.00018836,2]
[374645612,1753397440775,-151.0,0.00018836,2]
[374645614,1753397440785,-151.0,0.00018836,2]
[374645616,1753397440795,-151.0,0.00018836,2]
[374645618,1753397440805,-151.0,0.00018836,2]
[374645620,1753397440815,-151.0,0.00018836,2]
[374645622,1753397440825,-151.0,0.00018836,2]
[374645624,1753397440835,-151.0,0.00018836,2]
[374645626,1753397440844,-151.0,0.00018836,2]
[374645628,1753397440854,-151.0,0.00018836,2]
[374645630,1753397440864,-151.0,0.00018836,2]
[374645632,1753397440875,-151.0,0.00018836,2]
[374645634,1753397440885,-151.0,0.00018836,2]
[374645636,1753397440895,-151.0,0.00018836,2]
[374645638,1753397440904,-151.0,0.00018836,2]
[374645640,1753397440915,-25000.0,0.00018836,2]